bitfinex/quotes_SOLUSD_20250123
["timestamp","ask_amount","ask_price","bid_price","bid_amount"]
[1737649748008,19.50108807,253.24,253.1,0.063]
[1737649748185,23.776884,253.21,253.1,0.063]
[1737649749311,43.27797207,253.24,253.1,0.063]
[1737649749987,19.50108807,253.24,253.1,0.063]
[1737649750511,23.776884,253.23,253.1,0.063]
[1737649751207,23.776884,253.21,253.1,0.063]
[1737649751409,19.50108807,253.2,253.1,0.063]
[1737649751591,23.776884,253.17,253.1,0.063]
[1737649752186,6.2984,253.18,253.1,0.063]
[1737649752586,23.776884,253.17,253.1,0.063]
[1737649752777,23.776884,253.15,253.1,0.063]
[1737649753399,6.2984,253.18,253.1,0.063]
[1737649756705,23.776884,253.17,253.1,0.063]
[1737649757380,6.2984,253.18,253.1,0.063]
[1737649757591,6.2984,253.18,253.1,312.063]
[1737649759010,6.2984,253.18,253.1,0.063]
[1737649760083,43.27797207,253.17,253.1,0.063]
[1737649760299,19.50108807,253.15,253.1,0.063]
[1737649760712,43.27797207,253.17,253.1,0.063]
[1737649762188,6.2984,253.18,253.1,0.063]
[1737649763610,43.27797207,253.17,253.1,0.063]
[1737649763913,19.50108807,253.11,253.1,0.063]
[1737649764206,43.27797207,253.11,253.1,0.063]
[1737649764413,6.7744,253.1,253.06,0.03]
[1737649764596,19.50108807,253.07,253.06,0.03]
[1737649764794,43.27797207,253.07,253.06,0.03]
[1737649765114,68.01797207,253.07,253.06,0.03]
[1737649765322,19.50108807,253.07,253.06,0.03]
[1737649765485,6.1838,253.1,253.06,0.03]
[1737649767813,19.50108807,253.15,253.06,0.03]
[1737649768018,6.619,253.17,253.06,0.03]
[1737649768394,6.619,253.17,253.09,312.0]
[1737649768893,6.619,253.17,253.06,0.03]
[1737649769099,6.2799,253.23,253.09,20.0]
[1737649769597,6.2799,253.23,253.1,23.776884]
[1737649769802,6.2799,253.23,253.06,0.03]
[1737649770112,6.2799,253.23,253.08,23.776884]
[1737649770893,19.50108807,253.22,253.08,23.776884]
[1737649771224,19.50108807,253.2,253.06,0.03]
[1737649771924,19.50108807,253.2,253.09,312.0]
[1737649772217,6.2799,253.23,253.09,312.0]
[1737649772392,19.50108807,253.22,253.06,0.03]
[1737649772813,19.50108807,253.22,253.09,20.0]
[1737649774100,6.2799,253.23,253.09,20.0]
[1737649774515,19.50108807,253.22,253.09,20.0]
[1737649775322,6.2799,253.23,253.13,20.0]
[1737649775506,0.03,253.28,253.18,20.0]
[1737649775698,0.03,253.28,253.19,20.0]
[1737649777733,19.50108807,253.29,253.12,1.6142]
[1737649777921,19.50108807,253.29,253.16,20.0]
[1737649778245,19.50108807,253.35,253.2,20.0]
[1737649778415,19.50108807,253.39,253.2,20.0]
[1737649779327,19.50108807,253.39,253.29,312.0]
[1737649779713,20.50108807,253.39,253.29,312.0]
[1737649779923,20.50108807,253.39,253.3,3.9478]
[1737649780222,19.50108807,253.37,253.3,3.9478]
[1737649781222,19.50108807,253.37,253.18,20.0]
[1737649781527,19.50108807,253.35,253.24,20.0]
[1737649781723,12.15537209,253.35,253.21,9.8732]
[1737649781923,12.15537209,253.33,253.21,9.8732]
[1737649782126,12.15537209,253.31,253.2,20.0]
[1737649782606,12.15537209,253.29,253.2,20.0]
[1737649783012,12.15537209,253.29,253.18,13.824]
[1737649783703,12.15537209,253.25,253.18,3.9497]
[1737649785332,12.15537209,253.27,253.18,3.9497]
[1737649785520,12.15537209,253.27,253.12,20.0]
[1737649785836,19.46260025,253.26,253.12,20.0]
[1737649786224,19.46260025,253.28,253.13,23.776884]
[1737649786528,0.03,253.35,253.2,20.0]
[1737649786831,0.03,253.35,253.28,312.0]
[1737649787529,0.03,253.35,253.26,3.9485]
[1737649787934,0.03,253.35,253.26,13.8197]
[1737649788239,0.063,253.41,253.34,20.0]
[1737649788604,0.0001,253.41,253.38,20.0]
[1737649789015,0.0001,253.41,253.39,23.776884]
[1737649789214,0.0001,253.45,253.4,6.2581]
[1737649789416,0.0001,253.46,253.45,23.776884]
[1737649789622,0.03,253.54,253.48,20.0]
[1737649789821,0.03,253.54,253.44,3.9457]
[1737649789822,0.063,253.6,253.52,21.6174]
[1737649790131,0.063,253.6,253.44,3.9457]
[1737649790132,0.063,253.6,253.44,1.6174]
[1737649790332,19.46260025,253.59,253.46,312.0]
[1737649790534,19.46260025,253.57,253.44,1.6174]
[1737649790834,19.46260025,253.5,253.36,1.5828]
[1737649791040,19.46260025,253.5,253.36,21.5828]
[1737649791239,19.46260025,253.5,253.22,7.82]
[1737649791240,19.46260025,253.48,253.28,1.5653]
[1737649791742,19.46260025,253.43,253.28,1.5653]
[1737649792343,19.46260025,253.41,253.28,1.5653]
[1737649792519,19.46260025,253.41,253.21,7.47335411]
[1737649792726,19.46260025,253.39,253.21,7.47335411]
[1737649793131,19.46260025,253.39,253.28,20.0]
[1737649793434,19.46260025,253.41,253.28,20.0]
[1737649793612,19.46260025,253.41,253.23,23.776884]
[1737649793815,19.46260025,253.43,253.23,23.776884]
[1737649794126,19.46260025,253.43,253.3,20.0]
[1737649794531,19.46260025,253.41,253.21,1.5034]
[1737649794926,19.46260025,253.41,253.22,23.776884]
[1737649795427,19.46260025,253.39,253.22,23.776884]
[1737649795628,19.46260025,253.39,253.21,1.5034]
[1737649795825,19.46260025,253.39,253.22,20.0]
[1737649796030,19.49260025,253.39,253.22,43.776884]
[1737649796632,19.49260025,253.39,253.22,355.776884]
[1737649797244,23.776884,253.38,253.22,332.0]
[1737649797545,19.46260025,253.35,253.21,1.5034]
[1737649797746,19.46260025,253.33,253.13,1.6032]
[1737649797929,19.46260025,253.33,253.15,20.0]
[1737649798245,19.46260025,253.33,253.14,23.776884]
[1737649798848,19.46260025,253.33,253.17,20.0]
[1737649799059,19.46260025,253.31,253.13,1.6032]
[1737649799232,19.46260025,253.35,253.13,3.1871355]
[1737649799424,19.46260025,253.35,253.19,20.0]
[1737649799628,19.46260025,253.37,253.23,20.0]
[1737649799830,19.46260025,253.35,253.23,20.0]
[1737649800030,19.46260025,253.35,253.13,3.1871355]
[1737649800226,19.46260025,253.35,253.15,20.0]
[1737649800547,19.46260025,253.31,253.21,20.0]
[1737649800762,19.46260025,253.27,253.13,1.6032]
[1737649801423,19.46260025,253.31,253.17,20.0]
[1737649801749,19.46260025,253.33,253.17,20.0]
[1737649802151,19.46260025,253.31,253.17,20.0]
[1737649802349,19.46260025,253.37,253.21,20.0]
[1737649803349,19.46260025,253.31,253.14,1.60872601]
[1737649803551,19.46260025,253.29,253.13,1.6032]
[1737649803727,19.46260025,253.27,253.13,1.6032]
[1737649804057,19.46260025,253.29,253.13,1.6032]
[1737649804846,19.46260025,253.27,253.13,1.6032]
[1737649805049,19.46260025,253.25,253.13,1.6032]
[1737649805233,19.46260025,253.27,253.13,1.6032]
[1737649805547,19.46260025,253.31,253.16,20.0]
[1737649806145,19.46260025,253.29,253.13,1.6032]
[1737649806356,19.46260025,253.27,253.13,1.6032]
[1737649806559,19.46260025,253.25,253.13,1.6032]
[1737649806741,19.46260025,253.27,253.13,21.6032]
[1737649807047,19.46260025,253.33,253.14,43.776884]
[1737649808448,19.46260025,253.35,253.14,43.776884]
[1737649808639,23.776884,253.34,253.14,43.776884]
[1737649808841,0.03,253.39,253.19,20.0]
[1737649809077,0.03,253.39,253.16,24.776884]
[1737649809078,0.03,253.39,253.27,20.0]
[1737649809237,0.03,253.39,253.31,20.0]
[1737649809853,0.03,253.39,253.28,25.328084]
[1737649809854,0.03,253.39,253.28,1.5512]
[1737649810270,0.03,253.39,253.28,313.5512]
[1737649811549,0.03,253.39,253.31,20.0]
[1737649811747,0.03,253.39,253.32,20.0]
[1737649812146,0.03,253.39,253.32,26.3652]
[1737649812747,0.03,253.39,253.35,20.0]
[1737649814940,0.03,253.39,253.19,1.0]
[1737649814941,0.03,253.39,253.24,1.56272988]
[1737649815168,0.03,253.39,253.21,1.5617]
[1737649815477,0.03,253.39,253.29,20.0]
[1737649815652,0.03,253.39,253.33,20.0]
[1737649815856,0.03,253.39,253.21,1.5617]
[1737649816056,20.46260025,253.36,253.21,1.5617]
[1737649816257,39.46260025,253.33,253.21,1.5617]
[1737649816456,39.46260025,253.33,253.13,1.6506]
[1737649816653,19.46260025,253.33,253.15,20.0]
[1737649816856,19.46260025,253.33,253.13,1.6506]
[1737649817042,19.46260025,253.31,253.13,1.6506]
[1737649817245,23.776884,253.26,253.13,1.6506]
[1737649817470,19.46260025,253.25,253.13,1.6506]
[1737649817972,23.776884,253.26,253.13,1.6506]
[1737649818155,23.776884,253.26,253.13,0.063]
[1737649818355,19.46260025,253.27,253.13,0.063]
[1737649818683,19.46260025,253.29,253.13,0.063]
[1737649818969,39.46260025,253.31,253.13,0.063]
[1737649819178,19.46260025,253.29,253.14,20.0]
[1737649819540,23.776884,253.28,253.13,0.063]
[1737649819742,19.46260025,253.27,253.13,0.063]
[1737649820173,39.46260025,253.31,253.13,0.063]
[1737649820474,39.46260025,253.31,253.14,20.0]
[1737649821067,19.46260025,253.31,253.18,20.0]
[1737649821454,43.23948425,253.33,253.18,20.0]
[1737649821777,6.2906,253.34,253.22,20.0]
[1737649822360,43.23948425,253.33,253.13,0.063]
[1737649822760,43.23948425,253.33,253.15,20.0]
[1737649822963,6.2906,253.34,253.19,20.0]
[1737649823362,19.46260025,253.38,253.23,20.0]
[1737649823568,19.46260025,253.4,253.23,20.0]
[1737649823870,19.46260025,253.41,253.23,20.0]
[1737649824358,23.776884,253.4,253.23,20.0]
[1737649824553,19.46260025,253.41,253.27,20.0]
[1737649824773,6.2144,253.42,253.31,20.0]
[1737649825074,0.03,253.54,253.35,20.0]
[1737649825270,19.46260025,253.53,253.35,20.0]
[1737649825680,19.46260025,253.51,253.35,20.0]
[1737649826155,0.03,253.54,253.38,20.0]
[1737649826479,0.03,253.54,253.42,20.0]
[1737649826654,0.03,253.54,253.46,20.0]
[1737649827180,0.03,253.54,253.5,20.0]
[1737649827683,0.03,253.54,253.5,332.0]
[1737649827854,0.03,253.54,253.53,20.0]
[1737649828052,0.03,253.65,253.53,20.0]
[1737649828053,24.61229111,253.75,253.54,28.2049]
[1737649828251,1.578046,253.85,253.72,1.0]
[1737649828448,61.66453612,254.0,253.74,1.0]
[1737649828784,61.66453612,254.0,253.75,8.09682075]
[1737649828955,20.0,253.97,253.72,3.1628644]
[1737649829153,20.0,253.95,253.72,1.5569]
[1737649829450,61.66453612,254.0,253.79,23.776884]
[1737649829650,61.66453612,254.0,253.86,20.0]
[1737649829865,61.66453612,254.0,253.9,20.0]
[1737649830049,61.66453612,254.0,253.7,1.0]
[1737649830251,61.66453612,254.0,253.73,1.0]
[1737649830450,61.66453612,254.0,253.74,20.0]
[1737649830978,1.0,253.93,253.74,20.0]
[1737649831183,1.0,253.94,253.74,332.0]
[1737649831481,1.0,253.94,253.62,20.60255039]
[1737649831482,20.0,253.88,253.85,11.81313454]
[1737649831651,31.41834424,253.88,253.63,7.596]
[1737649831851,31.41834424,253.9,253.71,20.0]
[1737649832082,31.41834424,253.92,253.66,20.0]
[1737649832383,23.776884,253.91,253.67,23.776884]
[1737649832677,23.776884,253.91,253.66,20.0]
[1737649832678,31.41834424,253.92,253.66,20.0]
[1737649832979,6.5895,253.93,253.67,23.776884]
[1737649833183,24.776884,253.92,253.67,23.776884]
[1737649833359,56.19522824,253.92,253.67,23.776884]
[1737649833684,51.41834424,253.9,253.67,23.776884]
[1737649833990,20.0,253.89,253.66,20.0]
[1737649834162,6.5895,253.93,253.67,23.776884]
[1737649834473,23.776884,253.92,253.77,20.0]
[1737649834850,23.776884,253.92,253.75,20.0]
[1737649835475,55.19522824,253.92,253.63,7.596]
[1737649835674,55.19522824,253.92,253.66,20.0]
[1737649836274,55.19522824,253.92,253.74,20.0]
[1737649836581,23.776884,253.92,253.74,20.0]
[1737649836758,6.5895,253.93,253.78,20.0]
[1737649837279,6.5895,253.93,253.7,1.59687598]
[1737649837475,6.5895,253.93,253.75,23.776884]
[1737649837667,6.5895,253.93,253.78,20.0]
[1737649837885,6.5895,253.93,253.78,332.0]
[1737649838964,6.5895,253.93,253.78,20.0]
[1737649839291,23.776884,253.92,253.66,43.776884]
[1737649840283,6.5895,253.93,253.71,20.0]
[1737649840588,6.5895,253.93,253.79,20.0]
[1737649841380,23.776884,253.92,253.66,20.0]
[1737649841579,6.5895,253.93,253.74,20.0]
[1737649841782,6.5895,253.93,253.67,24.776884]
[1737649841783,6.5895,253.93,253.78,20.0]
[1737649841977,55.19522824,253.92,253.63,10.21150018]
[1737649842174,55.19522824,253.92,253.63,9.21150018]
[1737649842383,55.19522824,253.92,253.67,43.776884]
[1737649842967,23.776884,253.89,253.67,20.0]
[1737649843182,31.41834424,253.88,253.64,30.0]
[1737649843381,23.776884,253.89,253.64,30.0]
[1737649843690,31.41834424,253.88,253.67,20.0]
[1737649843888,23.776884,253.87,253.67,20.0]
[1737649844073,31.41834424,253.86,253.64,30.0]
[1737649844273,1.0,253.88,253.64,30.0]
[1737649844274,20.0,253.77,253.64,30.0]
[1737649844480,31.41834424,253.74,253.63,0.063]
[1737649844787,31.41834424,253.68,253.63,0.063]
[1737649845090,37.94704424,253.74,253.63,0.063]
[1737649845270,6.5287,253.74,253.63,0.063]
[1737649845470,7.74,253.84,253.63,0.063]
[1737649845471,31.41834424,253.82,253.64,20.0]
[1737649845816,31.41834424,253.75,253.63,0.063]
[1737649845991,30.0,253.82,253.63,0.063]
[1737649845992,31.41834424,253.73,253.63,0.063]
[1737649846163,23.776884,253.72,253.63,0.063]
[1737649846767,23.276884,253.72,253.63,0.063]
[1737649846990,30.0,253.81,253.63,0.063]
[1737649846991,31.41834424,253.75,253.63,0.063]
[1737649847191,31.41834424,253.82,253.67,20.0]
[1737649847489,31.41834424,253.8,253.63,0.063]
[1737649848069,31.41834424,253.78,253.65,20.0]
[1737649848587,31.41834424,253.8,253.65,20.0]
[1737649848788,31.41834424,253.82,253.66,23.776884]
[1737649848990,37.86184424,253.84,253.66,23.776884]
[1737649849166,6.4435,253.84,253.69,20.0]
[1737649849495,37.86184424,253.84,253.69,20.0]
[1737649849705,37.86184424,253.84,253.63,0.063]
[1737649849999,37.86184424,253.84,253.66,20.0]
[1737649850194,37.86184424,253.84,253.7,20.0]
[1737649850697,37.86184424,253.84,253.63,0.063]
[1737649850899,6.4435,253.84,253.63,0.063]
[1737649851279,6.4435,253.84,253.64,20.0]
[1737649851597,31.41834424,253.92,253.68,20.0]
[1737649851974,23.776884,253.91,253.75,312.0]
[1737649852198,23.776884,253.89,253.75,312.0]
[1737649852503,31.41834424,253.9,253.75,312.0]
[1737649852671,31.41834424,253.94,253.79,20.0]
[1737649852876,0.03,253.97,253.75,312.0]
[1737649852877,31.41834424,253.92,253.78,20.0]
[1737649853088,31.41834424,253.9,253.78,20.0]
[1737649853305,31.41834424,253.88,253.75,312.0]
[1737649853574,31.41834424,253.88,253.68,20.0]
[1737649853794,31.41834424,253.92,253.76,20.0]
[1737649853996,31.41834424,253.94,253.77,20.0]
[1737649854297,0.03,253.97,253.81,20.0]
[1737649854512,0.03,253.97,253.85,20.0]
[1737649854882,0.03,253.97,253.89,20.0]
[1737649855496,0.03,253.97,253.9,23.776884]
[1737649855697,0.03,253.97,253.82,1.58351159]
[1737649856007,0.03,253.97,253.86,20.0]
[1737649856392,0.03,253.97,253.9,20.0]
[1737649856990,0.03,253.97,253.87,20.0]
[1737649857194,0.03,253.97,253.92,20.0]
[1737649857420,0.03,253.97,253.84,6.6163]
[1737649858089,0.03,253.97,253.92,20.0]
[1737649859012,0.03,253.97,253.87,20.0]
[1737649859379,0.03,253.97,253.82,1.5259]
[1737649859812,0.03,253.97,253.79,1.60948271]
[1737649859978,23.806884,253.97,253.76,6.4803]
[1737649860184,0.03,253.97,253.83,20.0]
[1737649860493,31.41834424,253.94,253.72,1.5937]
[1737649860696,31.41834424,253.92,253.72,1.5937]
[1737649860896,31.41834424,253.9,253.68,6.4803]
[1737649861221,20.0,253.86,253.63,3.32589909]
[1737649861512,31.41834424,253.83,253.63,1.7237]
[1737649862007,31.41834424,253.85,253.63,21.7237]
[1737649862211,31.41834424,253.87,253.63,1.7237]
[1737649862584,31.41834424,253.87,253.71,20.0]
[1737649862780,31.41834424,253.85,253.68,312.0]
[1737649863217,31.41834424,253.83,253.63,1.7237]
[1737649863516,31.41834424,253.83,253.63,21.7237]
[1737649863823,31.41834424,253.85,253.67,20.0]
[1737649864005,31.41834424,253.81,253.67,20.0]
[1737649864195,31.41834424,253.88,253.68,43.776884]
[1737649864399,31.41834424,253.92,253.68,43.776884]
[1737649864615,31.41834424,253.9,253.63,1.7237]
[1737649864803,31.41834424,253.88,253.63,3.31902263]
[1737649864988,8.0451,253.95,253.68,23.776884]
[1737649864989,31.41834424,253.9,253.68,23.776884]
[1737649865312,51.41834424,253.92,253.68,23.776884]
[1737649865622,51.41834424,253.92,253.67,23.776884]
[1737649866116,31.41834424,253.92,253.78,23.776884]
[1737649866295,31.41834424,253.94,253.78,23.776884]
[1737649866494,0.03,253.97,253.82,23.776884]
[1737649866807,0.03,253.97,253.85,20.0]
[1737649866987,0.03,253.97,253.86,23.776884]
[1737649867522,31.41834424,253.96,253.75,1.5661611]
[1737649867819,0.03,253.97,253.83,20.0]
[1737649867987,23.776884,253.95,253.64,18.35218128]
[1737649868189,31.41834424,253.92,253.66,1.0]
[1737649868420,31.41834424,253.92,253.67,23.776884]
[1737649868586,31.41834424,253.92,253.67,20.0]
[1737649868787,0.03,253.9,253.67,20.0]
[1737649869217,0.03,253.9,253.66,20.0]
[1737649869388,0.03,253.9,253.64,20.0]
[1737649869591,31.44834424,253.9,253.71,312.0]
[1737649869897,23.776884,253.89,253.71,312.0]
[1737649870101,23.776884,253.89,253.74,20.0]
[1737649870617,43.776884,253.89,253.65,20.0]
[1737649871230,20.0,253.89,253.63,23.28289405]
[1737649871406,43.776884,253.89,253.63,3.28289405]
[1737649871604,55.19522824,253.88,253.63,23.28289405]
[1737649871915,23.776884,253.85,253.63,3.28289405]
[1737649872328,23.776884,253.85,253.67,20.0]
[1737649872491,31.44834424,253.9,253.71,20.0]
[1737649872692,0.03,253.9,253.76,23.776884]
[1737649872904,0.03,253.9,253.79,20.0]
[1737649873103,0.03,253.9,253.76,20.0]
[1737649873494,0.03,253.9,253.76,312.0]
[1737649873689,0.03,253.9,253.63,2.7237]
[1737649873910,0.03,253.9,253.71,20.0]
[1737649874223,0.03,253.9,253.68,23.776884]
[1737649874224,0.03,253.9,253.75,20.0]
[1737649874622,0.03,253.9,253.66,23.776884]
[1737649875130,31.41834424,253.78,253.63,0.063]
[1737649875623,20.0,253.73,253.63,0.063]
[1737649876000,31.41834424,253.78,253.63,0.063]
[1737649876199,20.0,253.73,253.63,0.063]
[1737649876511,31.41834424,253.72,253.63,0.063]
[1737649876710,20.0,253.73,253.63,0.063]
[1737649876915,31.41834424,253.78,253.63,0.063]
[1737649878225,31.41834424,253.76,253.63,0.063]
[1737649878525,1.6528,253.85,253.63,0.063]
[1737649878526,31.41834424,253.8,253.63,0.063]
[1737649878937,31.41834424,253.78,253.63,0.063]
[1737649879106,31.41834424,253.78,253.64,20.0]
[1737649879514,31.41834424,253.76,253.63,0.063]
[1737649879721,31.41834424,253.72,253.63,0.063]
[1737649880438,31.41834424,253.7,253.63,0.063]
[1737649880926,31.41834424,253.68,253.63,0.063]
[1737649881125,31.41834424,253.65,253.63,0.063]
[1737649883406,23.776884,253.64,253.63,0.063]
[1737649883821,0.03,253.76,253.63,0.063]
[1737649884015,0.03,253.76,253.67,312.0]
[1737649884219,0.03,253.76,253.71,20.0]
[1737649884736,0.03,253.76,253.63,0.063]
[1737649884936,0.03,253.76,253.63,23.839884]
[1737649885230,0.03,253.76,253.66,43.776884]
[1737649886033,6.05272332,253.9,253.68,23.776884]
[1737649886230,6.05272332,253.9,253.74,1.0]
[1737649886445,0.03,253.9,253.82,20.0]
[1737649886616,0.03,253.9,253.86,20.0]
[1737649886803,0.03,253.9,253.74,1.59133347]
[1737649887142,0.03,253.9,253.78,23.776884]
[1737649887317,0.03,253.9,253.85,20.0]
[1737649887524,0.03,253.9,253.85,332.0]
[1737649890740,0.03,253.9,253.86,23.776884]
[1737649890948,0.03,253.9,253.89,43.776884]
[1737649891332,0.03,253.9,253.89,20.0]
[1737649891515,0.03,253.9,253.8,23.776884]
[1737649891718,0.03,253.9,253.79,6.6551]
[1737649892120,0.03,253.9,253.83,20.0]
[1737649892519,0.03,253.9,253.69,6.6551]
[1737649892840,0.03,253.9,253.72,20.0]
[1737649893040,0.03,253.9,253.8,20.0]
[1737649893342,0.03,253.9,253.81,23.776884]
[1737649893926,0.03,253.9,253.84,20.0]
[1737649894229,0.03,253.9,253.85,23.776884]
[1737649894931,0.03,253.9,253.74,1.0]
[1737649895245,0.03,253.9,253.72,20.0]
[1737649895747,0.03,253.9,253.8,20.0]
[1737649896943,0.03,253.9,253.69,8.20126486]
[1737649897242,0.03,253.9,253.72,20.0]
[1737649897441,0.03,253.9,253.77,312.0]
[1737649897628,20.03,253.9,253.69,6.6551]
[1737649897843,31.41834424,253.84,253.63,0.063]
[1737649898026,31.41834424,253.82,253.63,0.063]
[1737649898220,31.41834424,253.8,253.63,0.063]
[1737649898552,31.41834424,253.77,253.63,0.063]
[1737649898847,51.41834424,253.71,253.63,0.063]
[1737649899053,20.0,253.64,253.63,0.063]
[1737649899230,23.776884,253.66,253.63,0.063]
[1737649899435,6.5292,253.7,253.63,0.063]
[1737649899646,32.0,253.84,253.63,0.063]
[1737649899647,6.5588,253.78,253.63,0.063]
[1737649899819,31.41834424,253.76,253.63,0.063]
[1737649900019,6.5588,253.78,253.63,0.063]
[1737649900221,6.014,253.87,253.63,20.063]
[1737649900449,6.014,253.87,253.64,23.776884]
[1737649900745,6.014,253.87,253.72,312.0]
[1737649901045,31.41834424,253.86,253.72,312.0]
[1737649901432,31.41834424,253.86,253.64,23.776884]
[1737649901636,31.41834424,253.86,253.71,20.0]
[1737649901951,6.014,253.87,253.72,23.776884]
[1737649902121,0.03,253.9,253.75,20.0]
[1737649902323,0.03,253.9,253.79,20.0]
[1737649902945,0.03,253.9,253.65,1.0]
[1737649903123,0.03,253.9,253.74,20.0]
[1737649903321,0.03,253.9,253.78,20.0]
[1737649903534,0.03,253.9,253.75,23.776884]
[1737649903931,31.41834424,253.88,253.66,20.0]
[1737649904124,31.41834424,253.86,253.66,20.0]
[1737649904347,31.41834424,253.86,253.75,0.063]
[1737649906053,31.41834424,253.84,253.75,0.063]
[1737649906250,31.41834424,253.89,253.75,0.063]
[1737649906564,0.03,253.9,253.75,0.063]
[1737649907854,23.806884,253.9,253.76,20.0]
[1737649908053,31.41834424,253.89,253.76,20.0]
[1737649908449,31.41834424,253.89,253.75,0.063]
[1737649910861,0.03,253.9,253.75,0.063]
[1737649911551,31.41834424,253.89,253.75,0.063]
[1737649912255,31.41834424,253.85,253.75,0.063]
[1737649912954,31.41834424,253.87,253.75,0.063]
[1737649913537,0.03,253.9,253.75,0.063]
[1737649914053,0.03,253.9,253.8,20.0]
[1737649914256,0.03,253.9,253.84,20.0]
[1737649915364,0.03,253.9,253.89,43.776884]
[1737649915548,0.03,253.9,253.89,20.0]
[1737649915944,0.03,253.87,253.81,6.0573]
[1737649916367,0.03,253.87,253.84,20.0]
[1737649916540,0.03,253.87,253.85,23.776884]
[1737649917156,0.03,253.87,253.81,7.64794482]
[1737649917344,0.03,253.87,253.86,23.776884]
[1737649917843,0.03,253.87,253.81,6.0573]
[1737649918065,0.03,253.87,253.85,20.0]
[1737649918264,0.03,253.87,253.8,1.56769065]
[1737649918265,0.03,253.87,253.75,0.063]
[1737649918768,0.03,253.87,253.8,312.0]
[1737649919161,0.03,253.87,253.75,0.063]
[1737649920143,0.03,253.87,253.76,20.0]
[1737649920341,0.03,253.9,253.8,21.0]
[1737649920545,0.03,253.9,253.89,23.776884]
[1737649921050,0.03,253.97,253.92,20.0]
[1737649921367,0.03,253.97,253.96,43.776884]
[1737649921888,0.03,254.13,253.93,1.0]
[1737649922048,0.03,254.13,254.02,312.0]
[1737649922249,0.03,254.13,253.89,1.0]
[1737649922581,19.35168374,254.13,253.88,21.57998707]
[1737649922749,19.35168374,254.13,253.93,20.0]
[1737649923169,19.32168374,254.11,253.85,9.18361288]
[1737649923392,19.32168374,254.11,253.85,10.18361288]
[1737649923680,19.32168374,254.11,253.88,20.0]
[1737649923979,31.42123981,254.08,253.85,9.18361288]
[1737649924145,31.42123981,254.1,253.89,43.776884]
[1737649924772,31.42123981,254.08,253.89,43.776884]
[1737649925193,31.42123981,254.08,253.89,332.0]
[1737649925495,31.42123981,254.08,253.89,43.776884]
[1737649925893,31.42123981,254.1,253.89,43.776884]
[1737649926198,31.42123981,254.12,253.89,43.776884]
[1737649926894,31.42123981,254.08,253.85,9.18361288]
[1737649927081,31.42123981,254.08,253.88,20.0]
[1737649927275,31.42123981,254.08,253.89,23.776884]
[1737649927797,31.42123981,254.11,253.89,23.776884]
[1737649928199,31.45123981,254.13,253.9,1.0]
[1737649928419,0.03,254.13,253.92,20.0]
[1737649928903,0.03,254.13,254.0,20.0]
[1737649929974,0.03,254.13,254.04,20.0]
[1737649930709,0.03,254.13,253.97,1.58052415]
[1737649930945,0.03,254.13,253.92,0.063]
[1737649931207,31.45123981,254.13,253.92,0.063]
[1737649931711,31.42123981,254.05,253.92,0.063]
[1737649932217,2.03,254.13,253.92,0.063]